bitfinex/quotes_ETHUSD_20240825
["timestamp","ask_amount","ask_price","bid_price","bid_amount"]
[1724559233640,3.61984,2762.6,2762.3,0.56632306]
[1724559235039,3.61984,2762.6,2762.4,0.56632306]
[1724559235250,3.61984,2762.6,2762.5,0.56632306]
[1724559235903,4.59992803,2762.7,2762.5,0.56632306]
[1724559236103,4.59992803,2762.7,2762.2,2.3261]
[1724559236310,3.61971,2762.7,2762.3,0.56632419]
[1724559236545,3.61971,2762.7,2762.4,0.56632419]
[1724559236859,3.61971,2762.7,2762.2,2.3261]
[1724559237144,3.61971,2762.7,2762.3,0.56633084]
[1724559237530,3.61971,2762.7,2762.4,0.56633084]
[1724559237745,4.96188302,2762.7,2762.5,0.56633084]
[1724559237968,4.96188302,2762.7,2762.6,0.56633084]
[1724559240023,4.96188302,2762.7,2762.2,2.3261]
[1724559240223,4.96188302,2762.7,2762.6,0.56632467]
[1724559240423,4.96188302,2762.7,2762.3,0.56632467]
[1724559240629,1.34217302,2762.7,2762.3,0.56632467]
[1724559240829,3.56517976,2762.8,2762.3,0.56632467]
[1724559241026,6.10585729,2762.9,2762.6,0.56632467]
[1724559241950,6.10585729,2762.9,2762.7,0.56632467]
[1724559242125,6.10585729,2762.9,2762.4,3.62002]
[1724559242126,6.10585729,2762.9,2762.3,7.24015]
[1724559242321,6.10585729,2762.9,2762.4,0.56630011]
[1724559242322,4.76299038,2762.9,2762.4,0.56630011]
[1724559242553,4.76299038,2762.9,2762.5,0.56630011]
[1724559242762,4.76299038,2762.9,2762.6,0.56630011]
[1724559242952,4.76299038,2762.9,2762.3,3.62007]
[1724559242953,8.38247038,2762.9,2762.7,0.56630011]
[1724559243140,1.13867976,2762.8,2762.3,3.62007]
[1724559243342,1.13867976,2762.8,2762.4,0.56631986]
[1724559243541,1.13867976,2762.8,2762.5,0.56631986]
[1724559243743,1.13867976,2762.8,2762.6,0.56631986]
[1724559243941,1.13867976,2762.8,2762.3,3.62007]
[1724559244629,1.13867976,2762.7,2762.3,3.62007]
[1724559245158,1.13867976,2762.7,2762.2,3.59576296]
[1724559245357,1.13867976,2762.7,2762.2,4.04881807]
[1724559245524,1.13867976,2762.6,2762.2,4.04882768]
[1724559246159,1.13867976,2762.6,2762.2,2.77916472]
[1724559246461,1.13867976,2762.6,2762.2,5.94639]
[1724559246962,1.13867976,2762.5,2762.2,6.39945603]
[1724559247313,1.13867976,2762.5,2762.2,6.28619196]
[1724559247523,1.13867976,2762.5,2762.3,0.45306929]
[1724559247821,1.13867976,2762.5,2762.2,6.28619196]
[1724559248022,1.13867976,2762.5,2762.3,0.45306981]
[1724559248219,1.51069575,2762.6,2762.3,0.45306981]
[1724559248220,1.13867976,2762.6,2762.4,0.45304657]
[1724559248423,1.13867976,2762.6,2762.5,0.45304657]
[1724559249127,1.13867976,2762.6,2762.3,5.02808618]
[1724559249585,1.13867976,2762.6,2762.5,0.45304214]
[1724559249866,1.13867976,2762.6,2762.5,0.45304276]
[1724559250921,1.51069575,2762.6,2762.3,1.74770387]
[1724559251273,1.13906003,2762.5,2762.4,0.4530569]
[1724559251854,3.6199,2762.5,2762.1,7.34]
[1724559252178,1.13910729,2762.3,2762.1,7.34]
[1724559252342,1.13910729,2762.4,2762.2,0.79289844]
[1724559252546,1.13910729,2762.4,2762.3,0.45309288]
[1724559254986,1.51069575,2762.5,2762.3,0.45309288]
[1724559255283,1.13921273,2762.4,2762.1,7.34]
[1724559255585,1.13921273,2762.4,2762.2,0.67961871]
[1724559255763,1.13921273,2762.4,2762.3,0.4530788]
[1724559256279,5.13062575,2762.5,2762.3,0.4530788]
[1724559256481,5.13062575,2762.5,2762.2,0.67962725]
[1724559256668,1.13908477,2762.3,2762.2,0.33980961]
[1724559256828,1.13908477,2762.3,2762.2,0.67962725]
[1724559257028,1.13908477,2762.3,2762.2,0.33980961]
[1724559257331,1.13908477,2762.3,2762.2,0.67962725]
[1724559257551,1.13908477,2762.3,2762.2,0.33980961]
[1724559258648,1.13908477,2762.3,2762.2,0.67962505]
[1724559258846,1.13908477,2762.3,2762.2,0.33980961]
[1724559259343,4.75912477,2762.4,2762.2,0.33980961]
[1724559259547,7.33245358,2762.4,2762.2,0.67961935]
[1724559259774,6.19336881,2762.4,2762.2,0.67961935]
[1724559260078,6.19336881,2762.4,2762.2,0.33980961]
[1724559260283,9.81349881,2762.4,2762.2,0.33980961]
[1724559260438,10.68321089,2762.3,2762.2,0.33980961]
[1724559260638,10.68321089,2762.3,2761.9,0.33983523]
[1724559260882,1.13857737,2762.1,2761.9,0.33983523]
[1724559261182,1.13857737,2762.1,2761.8,7.67985405]
[1724559261432,1.13857737,2762.1,2761.8,0.33985111]
[1724559261748,1.13857737,2762.1,2761.7,2.2552]
[1724559262142,1.13857737,2762.1,2761.8,0.33985119]
[1724559262337,1.13857737,2762.1,2761.7,2.59505119]
[1724559262544,4.75888737,2762.2,2761.8,0.33985119]
[1724559262753,1.13857737,2762.3,2761.9,5.23012415]
[1724559263702,1.137133,2762.3,2762.0,5.87573]
[1724559263848,1.51810316,2762.5,2762.1,1.26966296]
[1724559264653,7.78768401,2762.7,2762.3,1.26966296]
[1724559264654,1.51810316,2762.7,2762.3,1.26966296]
[1724559264893,1.51810316,2762.6,2762.2,3.6202]
[1724559265073,1.51810316,2762.6,2762.3,0.55]
[1724559265983,5.13803316,2762.5,2762.1,1.60947735]
[1724559266285,3.61993,2762.5,2762.1,1.60947735]
[1724559267887,5.13803316,2762.5,2762.1,1.26966296]
[1724559269659,5.13803316,2762.5,2762.0,2.59501946]
[1724559270497,5.13803316,2762.5,2762.0,0.33981946]
[1724559270498,2.2717,2762.4,2762.0,0.33981946]
[1724559270802,3.6202,2762.3,2761.8,9.5952]
[1724559271098,5.13830316,2762.3,2761.9,0.55]
[1724559271452,5.13830316,2762.3,2761.8,16.73199306]
[1724559271799,5.13830316,2762.3,2761.8,13.11118306]
[1724559271995,8.75858316,2762.3,2761.8,13.11118306]
[1724559272299,8.75856316,2762.3,2761.8,13.11118306]
[1724559272600,1.13754168,2762.2,2761.7,19.42911862]
[1724559272764,4.75804168,2762.1,2761.6,1.26966296]
[1724559275073,3.6205,2762.1,2761.6,1.26966296]
[1724559275503,4.75784168,2762.2,2761.6,4.89072296]
[1724559275705,4.75784168,2762.2,2761.7,1.80297058]
[1724559275906,1.13754168,2762.2,2761.8,3.52486296]
[1724559276106,1.13754168,2762.3,2761.8,7.14566296]
[1724559276403,1.13754168,2762.3,2761.8,10.76641296]
[1724559276624,1.13754168,2762.3,2761.8,7.14561296]
[1724559276829,1.13754168,2762.3,2761.9,0.89485835]
[1724559277347,1.13754168,2762.3,2761.8,7.14561296]
[1724559277548,1.13754168,2762.2,2761.8,7.14561296]
[1724559280725,7.20015168,2762.2,2761.7,3.07263354]
[1724559281023,7.20015168,2762.2,2761.8,0.55]
[1724559283411,3.62031,2762.2,2761.8,0.55]
[1724559283611,3.62031,2762.2,2761.9,0.72435435]
[1724559290862,4.75785168,2762.2,2761.9,0.72435435]
[1724559291071,1.13754168,2762.3,2761.9,4.29951731]
[1724559291266,1.13754168,2762.3,2762.1,1.26966296]
[1724559291470,1.13754168,2762.4,2762.1,1.26966296]
[1724559292586,1.13754168,2762.4,2762.1,2.06166669]
[1724559293168,4.75753168,2762.5,2762.1,2.06166669]
[1724559293355,1.13754168,2762.5,2762.1,2.06166669]
[1724559293686,1.13754168,2762.8,2762.4,2.3055]
[1724559293844,1.13754168,2762.8,2762.5,1.26966296]
[1724559294185,4.75706168,2762.8,2762.5,1.26966296]
[1724559295596,3.61952,2762.8,2762.5,1.26966296]
[1724559295814,4.75706168,2762.8,2762.4,2.3055]
[1724559295975,4.75706168,2762.8,2762.2,3.62018]
[1724559295976,4.75718168,2762.7,2762.1,9.6455]
[1724559296182,3.61997,2762.5,2762.1,9.6455]
[1724559297004,1.13754168,2762.6,2762.1,9.6455]
[1724559297203,8.37692168,2762.7,2762.1,13.26592]
[1724559297407,4.75718168,2762.7,2762.2,2.1156063]
[1724559297607,8.37691168,2762.7,2762.2,2.1156063]
[1724559298116,3.61979,2762.6,2762.2,2.1156063]
[1724559298521,4.75718168,2762.7,2762.2,2.1156063]
[1724559298874,4.75718168,2762.7,2762.2,3.38526926]
[1724559300291,1.13754168,2762.7,2762.5,2.2594]
[1724559300621,1.51810316,2762.8,2762.5,2.2594]
[1724559300622,1.13754168,2762.8,2762.5,2.2594]
[1724559301132,1.13754168,2762.7,2762.3,2.78634814]
[1724559301270,1.13754168,2762.7,2762.3,2.2594]
[1724559302634,4.75722168,2762.7,2762.2,3.62028]
[1724559302833,4.75722168,2762.7,2762.1,10.96035]
[1724559302834,1.13754168,2762.6,2762.1,10.96035]
[1724559303132,1.13754168,2762.6,2762.1,12.7713383]
[1724559303428,1.13754168,2762.6,2762.1,5.4313383]
[1724559303723,1.13754168,2762.6,2762.3,3.62017]
[1724559303926,1.13754168,2762.7,2762.3,3.61528938]
[1724559304128,1.13754168,2762.8,2762.4,0.56629248]
[1724559304315,1.13754168,2762.8,2762.5,0.56629248]
[1724559304518,1.13754168,2762.9,2762.6,2.82569248]
[1724559304713,1.13754168,2762.9,2762.6,7.14874296]
[1724559304913,1.13754168,2763.0,2762.6,7.14874296]
[1724559307849,1.13754168,2763.3,2762.9,5.87878]
[1724559308026,1.13754168,2763.3,2763.0,1.26966296]
[1724559308209,4.75627168,2763.4,2763.0,1.26966296]
[1724559308397,4.75641168,2763.3,2762.9,2.2594]
[1724559308738,4.75641168,2763.3,2762.8,1.26966296]
[1724559308739,8.37539168,2763.3,2762.8,1.26966296]
[1724559308905,7.14743168,2763.2,2762.9,0.55]
[1724559309107,3.52844168,2763.2,2762.9,0.55]
[1724559309707,3.52844168,2763.2,2762.6,7.34]
[1724559309922,3.61934,2763.0,2762.6,7.34]
[1724559310127,3.61934,2763.0,2762.6,8.60966296]
[1724559311062,2.50741964,2763.3,2762.6,7.34]
[1724559311063,3.66056296,2763.1,2762.6,7.34]
[1724559311233,3.61933,2763.0,2762.6,7.34]
[1724559312459,4.79810464,2763.1,2762.2,13.21965]
[1724559312763,3.61959,2762.8,2762.3,0.55]
[1724559312933,3.61959,2762.8,2762.3,4.17016]
[1724559313466,4.75692168,2763.0,2762.4,4.88961296]
[1724559316139,3.61938,2763.0,2762.4,4.88961296]
[1724559316334,4.75692168,2763.0,2762.4,4.88961296]
[1724559316752,3.61938,2763.0,2762.4,4.88961296]
[1724559317067,4.75692168,2763.0,2762.4,4.88961296]
[1724559317562,3.61938,2763.0,2762.4,4.88961296]
[1724559317922,4.75692168,2763.0,2762.4,4.88961296]
[1724559318665,4.75689168,2763.0,2762.4,4.88961296]
[1724559319267,1.13754168,2763.0,2762.6,1.26966296]
[1724559319473,4.75659168,2763.2,2762.7,6.64292]
[1724559319645,1.13754168,2763.2,2762.8,4.88913296]
[1724559319977,3.61886,2763.3,2762.8,1.26966296]
[1724559320268,4.84114648,2763.3,2762.8,1.26966296]
[1724559320873,3.61899,2763.2,2762.8,1.26966296]
[1724559321623,5.94859,2763.2,2762.7,0.55]
[1724559324365,2.35982816,2763.3,2762.8,3.74296296]
[1724559324566,1.13754168,2763.4,2763.0,3.61925]
[1724559326379,7.08582168,2763.5,2763.0,3.61925]
[1724559326544,1.13754168,2763.4,2763.0,3.61925]
[1724559326744,1.13754168,2763.4,2762.9,0.07238017]
[1724559327147,1.13754168,2763.4,2763.0,1.26966296]
[1724559327346,2.3296,2763.5,2763.0,4.88891296]
[1724559327571,8.37464168,2763.6,2763.0,4.88891296]
[1724559327742,4.75608168,2763.6,2763.0,4.88891296]
[1724559327966,3.61862,2763.5,2763.0,4.88891296]
[1724559329056,3.61862,2763.5,2763.0,1.26966296]
[1724559329662,1.13754168,2763.7,2763.4,1.26966296]
[1724559329865,4.75576168,2763.8,2763.4,1.26966296]
[1724559330190,4.75576168,2763.8,2763.2,3.74296296]
[1724559330191,3.61842,2763.7,2763.2,3.74296296]
[1724559330391,3.61842,2763.7,2763.3,0.55]
[1724559330977,3.61849,2763.6,2763.3,0.55]
[1724559331201,3.61849,2763.6,2763.2,1.26966296]
[1724559332284,7.23707,2763.6,2763.2,1.26966296]
[1724559332462,4.75603168,2763.6,2763.2,1.26966296]
[1724559332843,3.61849,2763.6,2763.2,1.26966296]
[1724559333248,3.61849,2763.6,2763.0,10.95924]
[1724559333249,3.6188,2763.4,2763.0,7.34]
[1724559333455,7.23762,2763.4,2763.0,7.34]
[1724559333953,3.6188,2763.4,2763.0,7.34]
[1724559334562,3.61887,2763.3,2763.0,7.34]
[1724559335057,3.61928,2763.0,2762.5,9.8133]
[1724559335399,3.61928,2763.0,2762.5,3.74296296]
[1724559335903,11.54274285,2763.2,2762.5,3.74296296]
[1724559336086,7.92366285,2763.2,2762.5,7.36275296]
[1724559336485,11.54274285,2763.2,2762.6,0.55]
[1724559336800,4.75667168,2763.1,2762.6,1.81966296]
[1724559338709,3.61931,2763.0,2762.6,1.81966296]
[1724559340108,3.61945,2762.9,2762.4,1.26966296]
[1724559340623,3.61945,2762.9,2762.3,9.69246]
[1724559340803,3.61945,2762.9,2762.5,1.26966296]
[1724559341114,4.75679168,2763.0,2762.5,1.26966296]
[1724559341401,3.61925,2763.0,2762.6,2.4523]
[1724559342167,2.3097,2762.9,2762.5,3.6199]
[1724559342366,2.3097,2762.3,2761.8,2.4523]
[1724559342568,3.62025,2762.3,2761.9,1.26966296]
[1724559342867,0.75814164,2762.2,2761.9,1.26966296]
[1724559343306,4.37839164,2762.3,2761.9,1.26966296]
[1724559343906,0.75814164,2762.2,2761.9,1.26966296]
[1724559344267,7.99867164,2762.3,2761.9,1.26966296]
[1724559344467,3.62032,2762.2,2761.9,1.26966296]
[1724559344690,3.62032,2762.2,2761.8,2.4523]
[1724559344691,4.37846164,2762.2,2761.8,2.4523]
[1724559347173,3.62032,2762.2,2761.8,2.4523]
[1724559347375,4.37846164,2762.2,2761.8,2.4523]
[1724559347581,3.62032,2762.2,2761.8,2.4523]
[1724559358769,3.62025,2762.3,2761.8,2.4523]
[1724559358969,6.68780164,2762.5,2762.1,1.26966296]
[1724559358970,3.61996,2762.5,2762.1,1.26966296]
[1724559359171,3.62015,2762.4,2761.9,1.81966296]
[1724559360152,3.61996,2762.5,2761.9,1.81966296]
[1724559360390,7.23945,2762.7,2762.1,7.36250296]
[1724559360610,3.61978,2762.6,2762.1,7.36250296]
[1724559360731,3.61978,2762.6,2762.1,3.74216296]
[1724559360925,3.6199,2762.5,2762.1,3.74216296]
[1724559361226,7.23991,2762.5,2762.1,3.74216296]
[1724559361478,7.23991,2762.5,2762.1,1.26966296]
[1724559361657,3.62004,2762.4,2762.1,1.26966296]
[1724559362369,3.62004,2762.4,2761.9,0.55]
[1724559362370,3.62024,2762.3,2761.9,0.55]
[1724559362574,3.62004,2762.4,2761.9,1.26966296]
[1724559362787,3.62031,2762.2,2761.9,1.26966296]
[1724559362943,3.62031,2762.2,2761.8,0.55]
[1724559363956,6.04511,2762.2,2761.8,0.55]
[1724559364746,6.04511,2762.2,2761.9,0.56638907]
[1724559365571,3.391321,2762.2,2761.9,0.56638907]
[1724559365758,3.391321,2762.2,2761.5,7.34]
[1724559365759,3.62045,2762.1,2761.7,1.26966296]
[1724559365960,3.62045,2762.1,2761.8,0.56641584]
[1724559366272,3.62045,2762.1,2761.7,1.26966296]
[1724559366487,3.62045,2762.1,2761.8,0.56641423]
[1724559366838,3.62045,2762.1,2761.9,0.56641423]
[1724559367039,3.62045,2762.1,2761.8,0.56641423]
[1724559367246,3.62057,2762.0,2761.5,12.23077296]
[1724559367451,3.62073,2761.9,2761.6,0.56642931]
[1724559367688,6.04571,2761.8,2761.5,0.56648468]
[1724559367971,6.04571,2761.8,2761.3,19.42911862]
[1724559367972,6.407783,2761.8,2761.3,19.42911862]
[1724559368175,6.407783,2761.8,2761.4,0.56650631]
[1724559368359,6.407783,2761.8,2761.5,0.56650631]
[1724559368566,6.407783,2761.8,2761.3,19.42911862]
[1724559368764,6.407783,2761.8,2761.4,0.56651221]
[1724559368978,6.407783,2761.8,2761.5,0.56651221]
[1724559369265,6.407783,2761.8,2761.3,19.42911862]
[1724559369444,6.407783,2761.8,2761.4,0.56650737]
[1724559369848,6.407783,2761.8,2761.5,0.56650737]
[1724559370041,6.407783,2761.8,2761.3,19.42911862]
[1724559370255,3.62106,2761.7,2761.4,0.56651158]
[1724559370461,4.2618533,2761.7,2761.1,4.89138296]
[1724559370676,3.62116,2761.6,2761.2,0.56653518]
[1724559370876,4.2618533,2761.7,2761.3,0.56653518]
[1724559371088,4.2618533,2761.7,2761.1,4.89138296]
[1724559371390,4.2618533,2761.7,2761.2,0.56653551]
[1724559371679,4.2618533,2761.7,2761.3,0.56653551]
[1724559371877,4.2618533,2761.7,2761.4,0.56653551]
[1724559372180,4.2618533,2761.7,2761.1,4.89138296]
[1724559372379,4.2618533,2761.7,2761.2,0.56652884]
[1724559372595,4.2618533,2761.7,2761.3,0.56652884]
[1724559372880,7.8829033,2761.7,2761.4,0.56652884]
[1724559373094,7.8829033,2761.7,2761.1,4.89138296]
[1724559373095,3.6211,2761.6,2761.1,4.89138296]
[1724559373376,3.6211,2761.6,2761.2,0.56652182]
[1724559373580,3.6211,2761.6,2761.3,0.56652182]
[1724559373883,3.6211,2761.6,2761.4,0.56652182]
[1724559374195,3.6211,2761.6,2761.1,4.89138296]
[1724559374483,3.6211,2761.6,2761.2,0.56652183]
[1724559374685,3.6211,2761.6,2761.3,0.56652183]
[1724559374888,3.6211,2761.6,2761.0,6.09436]
[1724559374889,3.62135,2761.4,2761.0,3.74216296]
[1724559375042,7.24279,2761.4,2761.1,0.56655531]
[1724559375241,6.04628,2761.3,2761.2,0.56655531]
[1724559375508,6.04628,2761.3,2761.0,0.56658804]
[1724559375693,6.04628,2761.3,2761.0,0.56658805]
[1724559375988,6.04628,2761.3,2760.9,8.73999186]
[1724559375989,6.04628,2761.3,2761.1,0.56658805]
[1724559376296,6.04628,2761.3,2761.0,0.56658724]
[1724559376476,6.04628,2761.3,2760.9,8.73999186]
[1724559376477,6.04628,2761.3,2761.1,0.5665801]
[1724559376796,6.04628,2761.3,2761.0,0.5665801]
[1724559376996,6.04628,2761.3,2761.1,0.5665801]
[1724559377147,4.74109464,2761.8,2761.0,0.5665801]
[1724559377148,3.62135,2761.5,2761.0,0.5665801]
[1724559377346,6.04596,2761.6,2761.1,1.83624306]
[1724559377347,3.62136,2761.4,2761.1,1.83624306]
[1724559377592,3.62136,2761.4,2761.1,1.26966296]
[1724559380108,3.62136,2761.4,2761.1,0.56655206]
[1724559380589,3.62136,2761.4,2761.0,0.56655206]
[1724559381412,0.75814164,2761.8,2761.3,4.89103296]
[1724559381544,0.75814164,2762.0,2761.6,2.4098]
[1724559381857,4.37868164,2762.1,2761.6,2.4098]
[1724559382057,4.37868164,2762.1,2761.5,4.89079296]
[1724559382058,3.62059,2762.0,2761.5,4.89079296]
[1724559382880,3.62059,2762.0,2761.5,1.26966296]
[1724559383183,3.62069,2761.9,2761.4,2.4098]
[1724559383554,3.62069,2761.9,2761.4,2.97629932]
[1724559383862,6.01409,2761.9,2761.4,0.56649932]
[1724559384075,3.62091,2761.8,2761.4,0.56649932]
[1724559384474,3.62096,2761.7,2761.3,1.83616228]
[1724559384679,3.62096,2761.7,2761.1,4.1717]
[1724559384680,2.3934,2761.6,2761.2,0.56649932]
[1724559385389,2.3934,2761.6,2761.3,0.56651766]
[1724559385576,2.3934,2761.6,2761.2,0.56651766]
[1724559385792,2.3934,2761.6,2761.3,0.56651766]
[1724559385959,2.3934,2761.6,2761.2,0.56651766]
[1724559386303,2.3934,2761.6,2761.3,0.56651766]
[1724559386455,2.3934,2761.6,2761.2,0.56651766]
[1724559386661,2.3934,2761.6,2761.3,0.56651766]
[1724559386896,2.3934,2761.6,2761.2,0.56651766]
[1724559387056,2.3934,2761.6,2761.3,0.56651766]
[1724559387257,2.3934,2761.6,2761.2,0.56651766]
[1724559387562,2.3934,2761.6,2761.3,0.56651766]
[1724559387763,2.3934,2761.6,2761.2,0.56651766]
[1724559387997,6.01449,2761.6,2761.3,0.56651766]
[1724559388188,6.01449,2761.6,2761.2,0.56651766]
[1724559388405,6.01449,2761.6,2761.3,0.56651766]
[1724559388586,6.01449,2761.6,2761.3,0.56651121]
[1724559388788,6.01449,2761.6,2761.2,0.56651121]
[1724559388958,6.01449,2761.6,2761.1,7.30119296]
[1724559388959,6.01449,2761.6,2761.3,0.56650598]
[1724559389305,6.01449,2761.6,2761.1,7.30119296]
[1724559390390,6.01449,2761.6,2761.1,4.89139296]
[1724559390624,6.01449,2761.6,2761.0,3.62183]
[1724559390625,3.62124,2761.5,2761.0,3.62183]
[1724559390765,2.3934,2761.4,2761.0,4.89149296]
[1724559392688,6.01476,2761.4,2761.0,1.26966296]
[1724559392887,6.01476,2761.4,2760.9,0.1303289]
[1724559393063,7.28319523,2761.4,2760.9,0.1303289]
[1724559394015,8.04133687,2761.4,2760.9,0.1303289]
[1724559395021,3.6215,2761.3,2760.9,0.1303289]
[1724559395207,4.37964164,2761.3,2760.9,0.1303289]
[1724559395409,2.3934,2761.2,2760.9,0.1303289]
[1724559395593,0.67731516,2761.1,2760.9,0.1303289]
[1724559395801,6.77316164,2761.2,2760.9,0.1303289]
[1724559396958,6.01502,2761.2,2760.9,0.1303289]
[1724559397127,6.77316164,2761.2,2760.9,0.1303289]
[1724559397420,3.62176,2761.1,2760.9,0.1303289]
[1724559397993,2.3934,2761.0,2760.9,0.1303289]
[1724559398202,3.07073016,2761.0,2760.9,0.1303289]
[1724559399024,10.31447016,2761.0,2760.9,0.1303289]
[1724559399533,6.69260016,2761.0,2760.9,0.1303289]
[1724559400634,10.31447016,2761.0,2760.9,0.1303289]
[1724559401137,11.0726118,2761.0,2760.9,0.1303289]
[1724559401499,6.69260016,2761.0,2760.9,0.1303289]
[1724559402832,10.31447016,2761.0,2760.9,0.1303289]
[1724559403019,10.31447016,2761.0,2760.9,0.0803289]
[1724559404723,11.0726118,2761.0,2760.9,0.0803289]
[1724559404913,10.31447016,2761.0,2760.9,0.0803289]
[1724559406125,11.0726118,2761.0,2760.9,0.0803289]
[1724559409217,7.4507418,2761.0,2760.9,0.0803289]
[1724559409613,6.69260016,2761.0,2760.9,0.0803289]
[1724559411412,7.4507418,2761.0,2760.9,0.0803289]
[1724559411603,6.69260016,2761.0,2760.9,0.0803289]
[1724559412152,7.4507418,2761.0,2760.9,0.0803289]
[1724559412913,11.0726118,2761.0,2760.9,0.0803289]
[1724559413934,6.69260016,2761.0,2760.9,0.0803289]
[1724559414108,10.31447016,2761.0,2760.9,0.0803289]
[1724559414314,7.44958826,2761.0,2760.9,0.0803289]
[1724559414514,6.69260016,2761.0,2760.9,0.0803289]
[1724559414728,4.3788581,2761.0,2760.9,0.0803289]
[1724559415246,3.62187,2761.0,2760.9,0.0803289]
[1724559415449,4.3788581,2761.0,2760.9,0.0803289]
[1724559416754,6.7614581,2761.0,2760.9,0.0803289]
[1724559417321,10.3833281,2761.0,2760.9,0.0803289]
[1724559417669,11.53537469,2761.0,2760.9,0.0803289]
[1724559417957,7.91350469,2761.0,2760.9,0.0803289]
[1724559418145,11.53537469,2761.0,2760.9,0.0803289]
[1724559418830,7.91350469,2761.0,2760.9,0.0803289]
[1724559420741,5.53090469,2761.0,2760.9,0.0803289]
[1724559420944,4.3788581,2761.0,2760.9,0.0803289]
[1724559421555,3.62187,2761.0,2760.9,0.0803289]
[1724559421861,4.3788581,2761.0,2760.9,0.0803289]
[1724559422058,8.0007281,2761.0,2760.9,0.0803289]
[1724559422918,10.2777281,2761.0,2760.9,0.0803289]
[1724559423121,11.95117466,2761.0,2760.9,0.0803289]
[1724559423337,10.8140369,2761.0,2760.9,0.0803289]
[1724559423604,11.94923684,2761.0,2760.9,0.0803289]
[1724559425078,11.57081527,2761.0,2760.9,0.0803289]
[1724559426247,10.8140369,2761.0,2760.9,0.0803289]
[1724559427393,11.94923684,2761.0,2760.9,0.0803289]
[1724559430868,10.8140369,2761.0,2760.9,0.0803289]
[1724559432705,12.33214006,2761.0,2760.9,0.0803289]
[1724559433176,10.05514006,2761.0,2760.9,0.0803289]
[1724559434077,5.13987316,2761.1,2760.9,0.0803289]
[1724559434279,1.13602654,2761.0,2760.9,0.0803289]
[1724559434586,4.75779654,2761.1,2760.9,0.0803289]
[1724559435069,3.62187,2761.0,2760.9,0.0803289]
[1724559435572,4.75779654,2761.1,2760.9,0.0803289]
[1724559436507,1.13602654,2761.0,2760.9,0.0803289]
[1724559438695,4.75789654,2761.0,2760.9,0.0803289]
[1724559439312,1.13602654,2761.0,2760.9,0.0803289]
[1724559439626,0.75870672,2761.1,2761.0,2.312]
[1724559439790,0.75870672,2761.1,2761.0,4.13166296]
[1724559440220,0.75870672,2761.2,2761.0,4.13166296]
[1724559440428,0.75870672,2761.2,2761.1,0.55]
[1724559440797,0.75870672,2761.2,2761.0,3.58166296]
[1724559441125,0.75870672,2761.2,2761.0,7.20353296]
[1724559441335,0.75870672,2761.2,2761.1,0.55]
[1724559443233,0.75870672,2761.3,2761.1,0.55]
[1724559443937,0.75870672,2761.2,2761.1,0.55]
[1724559444099,0.75870672,2761.2,2761.1,3.66956148]
[1724559444299,1.89559821,2761.6,2761.3,2.312]
[1724559444300,0.75870672,2761.6,2761.3,2.312]
[1724559444509,1.13602654,2761.8,2761.6,2.312]
[1724559444510,0.75870672,2761.8,2761.6,2.312]
[1724559444837,0.75870672,2761.8,2761.7,1.26966296]
[1724559445334,0.75870672,2761.9,2761.7,1.26966296]
[1724559446403,0.75870672,2762.0,2761.7,1.26966296]
[1724559447838,0.75870672,2762.0,2761.7,1.98994126]
[1724559448136,0.75870672,2762.0,2761.5,4.89084296]
[1724559448302,4.37934672,2762.0,2761.6,0.55]
[1724559448996,4.37934672,2762.0,2761.2,2.312]
[1724559448997,3.62091,2761.8,2761.2,2.312]
[1724559449200,7.24186,2761.8,2761.2,3.58166296]
[1724559449429,3.62097,2761.7,2761.2,3.58166296]
[1724559450015,3.62097,2761.7,2761.2,7.20325296]
[1724559450542,6.0281,2761.9,2761.3,0.55]
[1724559450747,6.0281,2761.9,2761.4,1.26966296]
[1724559451231,6.0281,2761.9,2761.4,4.89100296]
[1724559451432,0.75870672,2762.0,2761.6,1.26966296]
[1724559451630,0.75870672,2762.0,2761.7,0.55]
[1724559452029,1.13602654,2762.1,2761.7,0.55]
[1724559452030,0.75870672,2762.1,2761.7,0.55]
[1724559452842,0.75870672,2762.1,2761.7,4.17094]
[1724559453444,0.75870672,2762.3,2762.0,1.26966296]
[1724559453746,0.75870672,2762.4,2762.0,1.26966296]
[1724559453949,1.45408178,2762.4,2762.0,1.26966296]
[1724559454440,5.07413178,2762.4,2761.9,3.6206]
[1724559455418,4.31542506,2762.4,2761.8,2.312]
[1724559455614,5.07413178,2762.4,2761.9,0.55]
[1724559455814,3.62017,2762.3,2761.9,0.55]
[1724559456021,6.02762,2762.2,2761.9,0.55]
[1724559456328,6.02762,2762.2,2761.7,3.62085]
[1724559456329,6.02762,2762.2,2761.8,0.55]
[1724559458413,6.02761,2762.2,2761.4,3.62129]
[1724559458615,3.62064,2762.0,2761.3,3.6214]
[1724559458815,3.62064,2762.0,2761.3,4.81663778]
[1724559459914,3.62064,2762.0,2761.4,0.55]
[1724559460117,3.62064,2762.0,2761.5,3.62121]
[1724559461546,0.75870672,2762.3,2761.7,5.90441]
[1724559461747,7.50293178,2762.4,2761.8,0.55]
[1724559461977,7.50293178,2762.4,2761.8,4.17073]
[1724559463348,0.75870672,2762.5,2761.9,3.62061]
[1724559463675,4.37861672,2762.5,2762.0,0.55]
[1724559465561,3.62005,2762.4,2762.0,0.55]
[1724559467582,3.61991,2762.5,2762.1,2.2835]
[1724559469453,3.62004,2762.4,2762.0,0.967061]
[1724559469651,7.24016,2762.4,2762.0,0.55]
[1724559470683,3.62025,2762.3,2762.0,0.55]
[1724559470893,3.62025,2762.3,2761.9,0.55]
[1724559471762,3.62004,2762.4,2761.9,0.55]
[1724559472470,3.62004,2762.4,2761.9,1.557512]
[1724559472669,3.62004,2762.4,2762.0,2.2835]
[1724559472874,3.62004,2762.4,2762.1,0.55]
[1724559476308,0.75870672,2762.7,2762.3,1.2697809]
[1724559476469,7.18440654,2762.8,2762.3,1.2697809]
[1724559476470,4.37828672,2762.8,2762.4,0.55]
[1724559476808,3.61958,2762.8,2762.4,0.55]
[1724559476973,7.2392,2762.8,2762.4,0.55]
[1724559477590,3.61958,2762.8,2762.4,0.55]
[1724559478671,7.23919,2762.8,2762.4,0.55]
[1724559478874,3.61958,2762.8,2762.4,0.55]
[1724559480107,3.61972,2762.7,2762.4,0.55]
[1724559480308,3.61972,2762.7,2762.2,0.55]
[1724559480610,3.61985,2762.6,2762.2,0.55]
[1724559481179,7.23971,2762.6,2762.2,0.55]
[1724559481382,6.07485,2762.6,2761.9,7.1495009]
[1724559481575,7.74700105,2762.6,2761.9,5.87972]